Cogmind - Beta 13 @@@ ROGUE MODE // 2024.05.14 @ 20:11:36 Player: my balls icht Result: Destroyed by as-14191 with Assembled Blade Performance ------------- Evolutions (1) 500 Regions Visited (3) 600 Robots Destroyed (19) 95 Value Destroyed (388) 388 Prototype IDs (0) 0 Alien Tech Used (0) 0 Bonus (0) 0 TOTAL SCORE: 1583 Bonus ------- None Cogmind --------- Core Integrity 0/400 Matter 268/300 Energy 159/250 System Corruption 5% Temperature Cool (0) Movement Core (150) Ox2 Location -9/Mines Parts ------- > --- POWER (2) -------- Ion Engine > --- PROPULSION (2) --- (None) > --- UTILITY (3) ------ (None) > --- WEAPON (2) ------- Datajack Datajack > --- INVENTORY (5) ---- (None) Peak State ------------ > --- POWER ------------ Ion Engine > --- PROPULSION ------- Compact Wheel > --- UTILITY ---------- Advanced ECM Suite Hardened Light Armor Plating Improved Medium Armor Plating > --- WEAPON ----------- Improved EM Pulse Cannon Heavy Assault Rifle > --- INVENTORY -------- Flight Unit Flight Unit Particle Gun Datajack Datajack [Rating: 18] Favorites ----------- Power Ion Engine Engine Ion Engine Power Core Light Nuclear Core Propulsion Light Treads Treads Light Treads Wheel Compact Wheel Flight Unit Flight Unit Utility Small Storage Unit Device Structural Scanner Storage Small Storage Unit Protection Hardened Light Armor Plating Weapon Assault Rifle Energy Gun Particle Gun Energy Cannon Improved EM Pulse Cannon Ballistic Gun Assault Rifle Launcher Mini Grenade Launcher Special Weapon Mining Laser Special Melee Weapon Datajack Build | -11 -10 -9 -9 ------- Run | Yrd Mat Mat Min Slots Evolved 2 | . . 2 . Power 1 | . . 1 . Propulsion . | . . . . Utility 1 | . . 1 . Weapon . | . . . . Parts Attached 36 | 7 4 10 15 Power 7 | 1 1 2 3 Engine 6 | 1 1 1 3 Core 1 | . . 1 . Reactor . | . . . . Propulsion 9 | 2 1 3 3 Treads 4 | 2 1 1 . Leg . | . . . . Wheel 1 | . . . 1 Hover . | . . . . Flight 4 | . . 2 2 Utility 8 | 2 1 2 3 Device 3 | 1 1 . 1 Storage 2 | 1 . 1 . Processor . | . . . . Hackware . | . . . . Protection 3 | . . 1 2 Artifact . | . . . . Weapon 12 | 2 1 3 6 Energy Gun 3 | . . 2 1 Energy Cannon 1 | . . . 1 Ballistic Gun 4 | 2 1 1 . Ballistic Cannon . | . . . . Launcher 1 | . . . 1 Special Weapon 1 | . . . 1 Impact Weapon . | . . . . Slashing Weapon . | . . . . Piercing Weapon . | . . . . Special Melee Weapon 2 | . . . 2 Unidentified Prototypes . | . . . . Parts Lost 22 | . . 7 15 Power 6 | . . 4 2 Propulsion 6 | . . 2 4 Utility 4 | . . . 4 Weapon 6 | . . 1 5 Highest Loss Streak 15 | . . 4 15 To Critical Strikes . | . . . . Average Slot Usage (%) 88 | . 98 91 53 Engine 12 | . 14 12 9 Core 4 | . . 6 . Treads 18 | . 27 18 . Flight 1 | . . 1 4 Device 10 | . 13 10 3 Storage 10 | . 14 11 2 Protection 8 | . . 10 11 Energy Gun 5 | . . 6 5 Ballistic Gun 15 | . 27 14 4 Naked Turns 3 | . . . 3 Heaviest Build 29 | 15 15 29 28 Greatest Support 40 | 40 40 40 16 Greatest Overweight (x) 6 | . . 6 3 Average Overweight (x) . | . . . . Largest Inventory Capacity 8 | 8 8 8 8 Average Capacity 7 | 7 8 7 5 Most Carried 6 | 2 5 6 5 Average Carried 4 | 1 3 5 3 Final Capacity 8 | 8 8 8 5 Final Carried 5 | 2 5 5 . Class Distribution -------------------- 62% | Mutant 37% | Scavenger-Mutant Dominant Class ---------------- Mutant | -10/Materials Scavenger-Mutant | -9/Materials Mutant | -9/Mines Resources | -11 -10 -9 -9 ----------- Run | Yrd Mat Mat Min Matter Collected 844 | 250 114 303 177 Remotely . | . . . . Salvage Created 529 | 33 132 323 41 Parts 33 | 5 9 19 . Haulers Intercepted . | . . . . Recyclers Shooed 1 | . . 1 . Parts Field Recycled . | . . . . Retrieved Matter . | . . . . Parts Self-Destructed . | . . . . Prevented . | . . . . Kills | -11 -10 -9 -9 ------- Run | Yrd Mat Mat Min Combat Hostiles Destroyed 19 | . 5 10 4 Guns 16 | . 5 10 1 Cannons 2 | . . . 2 AOE 1 | . . . 1 Classes Destroyed 6 | 1 2 2 1 Worker 1 | . . 1 . Tunneler 3 | 2 . 1 . Swarmer 7 | . 3 4 . Grunt 7 | . 2 5 . Sentry 1 | . . 1 . Assembled 4 | . . . 4 Best Kill Streak 4 | 2 3 4 2 Combat Bots Only 4 | . 3 4 2 Max Kills in Single Turn 2 | 1 1 2 1 Gunslinging 1 | . . 1 . Exploded 1 | . . . 1 Melee . | . . . . Uniques/NPCs Destroyed . | . . . . Combat | -11 -10 -9 -9 -------- Run | Yrd Mat Mat Min Hostile Shots Fired 228 | . 41 93 94 Missed 59 | . 10 23 26 Damage Taken 2254 | . 298 778 1178 Core 458 | . 44 76 338 Absorbed by Shields . | . . . . Core Remaining (%) 91 | 100 82 . . Volleys Fired 73 | 2 19 37 15 Largest 2 | 2 2 2 2 Hottest 92 | 40 40 88 92 Shots Fired 123 | 4 38 64 17 Gun 116 | 4 38 64 10 Cannon 6 | . . . 6 Launcher 1 | . . . 1 Special . | . . . . Kinetic 86 | 4 38 40 4 Thermal 30 | . . 24 6 Explosive 1 | . . . 1 Electromagnetic 6 | . . . 6 Robot Hit Streak 8 | 3 5 8 3 Robot Miss Streak 5 | . 3 2 5 Penetration Max . | . . . . Secondary Targets 3 | . 1 2 . Max Gunslinging Chain 1 | . 1 1 . Shots Hit Robots 72 | 3 20 43 6 Core Hits 36 | 2 6 19 9 Critical Kills . | . . . . Critical Parts Destroyed . | . . . . Critical Strikes . | . . . . Melee Attacks . | . . . . Impact . | . . . . Slashing . | . . . . Piercing . | . . . . Sneak Attacks . | . . . . Combat Hostiles . | . . . . Follow-up Attacks . | . . . . Damage Inflicted 1260 | 32 265 680 283 Guns 1022 | 32 265 680 45 Cannons 76 | . . . 76 Explosions 162 | . . . 162 Melee . | . . . . Ramming . | . . . . Kinetic 735 | 32 265 438 . Thermal 287 | . . 242 45 Explosive 162 | . . . 162 Electromagnetic 76 | . . . 76 Impact . | . . . . Slashing . | . . . . Piercing . | . . . . Highest Corruption 5 | . . . 5 Average Corruption 4 | . . . 4 Corruption Purged . | . . . . Corruption Blocked . | . . . . Effects 1 | . . . 1 Data Loss (minor) 1 | . . . 1 Overload Shots . | . . . . Overflow Damage 7 | . . . 7 Projectiles . | . . . . Explosions 7 | . . . 7 Melee . | . . . . Knockbacks . | . . . . Impact . | . . . . Kinetic . | . . . . Secondary . | . . . . Self-Inflicted Damage 40 | . . . 40 Shots 1 | . . . 1 Rammed . | . . . . Targets Rammed . | . . . . Kicked . | . . . . Crushed . | . . . . Highest Temperature 629 | . . 629 187 Average Temperature 182 | . . 212 83 Received Heat Transfer 508 | . 120 288 100 Effects 25 | . . 25 . Shutdowns 9 | . . 9 . Energy Bleed 5 | . . 5 . Interference 3 | . . 3 . Matter Decay 4 | . . 4 . Short Circuit 2 | . . 2 . Damage (minor) 2 | . . 2 . Siege Activations . | . . . . Robots Corrupted . | . . . . Combat Hostiles . | . . . . Parts Fried . | . . . . Impact Corruptions . | . . . . Robots Melted . | . . . . Combat Hostiles . | . . . . Parts Melted 1 | . . 1 . Heat Transferred 703 | . . 592 111 Parts Sabotaged . | . . . . Parts Stolen . | . . . . Parts Stripped . | . . . . Power Chain Reactions . | . . . . Alert | -11 -10 -9 -9 ------- Run | Yrd Mat Mat Min Peak Influence 161 | 10 152 161 15 Initial 63 | . 6 63 6 Average 60 | 2 67 73 1 Maximum Alert Level . | . . . . Low Security (%) 100 | 100 100 100 100 Level 1 . | . . . . Level 2 . | . . . . Level 3 . | . . . . Level 4 . | . . . . Level 5 . | . . . . High Security . | . . . . Max Security . | . . . . Squads Dispatched 4 | . 2 1 1 Investigation 2 | . 1 . 1 Extermination . | . . . . Reinforcement 2 | . 1 1 . Assault . | . . . . Garrison . | . . . . Intercept . | . . . . Searches Triggered . | . . . . Construction Impeded . | . . . . Haulers Reinforced . | . . . . Active Scanning Responses . | . . . . Cargo Convoy Interrupts . | . . . . Stealth | -11 -10 -9 -9 --------- Run | Yrd Mat Mat Min Distress Signals . | . . . . Communications Jammed . | . . . . Distress Signals . | . . . . Times Spotted 40 | . 6 12 22 Peak Tracking Total 9 | . 3 5 9 Tactical Retreats 2 | . . . 2 Traps | -11 -10 -9 -9 ------- Run | Yrd Mat Mat Min Traps Triggered 2 | . 2 . . Indirectly . | . . . . Trap Hack Attempts . | . . . . Triggered . | . . . . Disarmed . | . . . . Reprogrammed . | . . . . Reused . | . . . . Traps Extracted . | . . . . Installed . | . . . . Triggered . | . . . . Machines | -11 -10 -9 -9 ---------- Run | Yrd Mat Mat Min Machines Disabled . | . . . . Max in Single Turn . | . . . . Machines Repaired . | . . . . Machines Dismantled . | . . . . Machines Sabotaged . | . . . . Overloaded Fab Kills . | . . . . Hacking | -11 -10 -9 -9 --------- Run | Yrd Mat Mat Min Machines Accessed 4 | . 1 2 1 Terminals 1 | . 1 . . Fabricators . | . . . . Repair Stations 1 | . . 1 . Recycling Units . | . . . . Scanalyzers 1 | . . 1 . Garrison Access . | . . . . Total Hacks 12 | . 3 8 1 Successful 7 | . 1 5 1 Failed 5 | . 2 3 . Catastrophic . | . . . . Database Lockouts . | . . . . Manual . | . . . . Terminals 3 | . 3 . . Fabricators . | . . . . Repair Stations 4 | . . 4 . Recycling Units . | . . . . Scanalyzers 4 | . . 4 . Garrison Access . | . . . . Terminal Hacks 2 | . 1 . 1 Open Door 1 | . . . 1 Zone Layout 1 | . 1 . . Fabricator Hacks . | . . . . Repair Station Hacks 1 | . . 1 . Refit 1 | . . 1 . Recycling Unit Hacks . | . . . . Scanalyzer 4 | . . 4 . Insert Component 2 | . . 2 . Analyze 2 | . . 2 . Garrison Access Hacks . | . . . . Unauthorized Hacks . | . . . . Terminals . | . . . . Fabricators . | . . . . Repair Stations . | . . . . Recycling Units . | . . . . Scanalyzers . | . . . . Garrison Access . | . . . . Data Cores Recovered . | . . . . Used . | . . . . Hacking Detections 1 | . . 1 . Full Trace Events . | . . . . Feedback Events . | . . . . Feedback Blocked . | . . . . Robot Schematics Acquired . | . . . . Robots Built . | . . . . Authchips . | . . . . Time . | . . . . Total Robot Build Rating . | . . . . Part Schematics Acquired 1 | . . 1 . Parts Built . | . . . . Authchips . | . . . . Time . | . . . . Total Part Build Rating . | . . . . Parts Repaired . | . . . . Time . | . . . . Parts Recycled . | . . . . Recycled Matter . | . . . . Retrieved Matter . | . . . . Retrieved Components . | . . . . Parts Scanalyzed 1 | . . 1 . Part Schematics Acquired 1 | . . 1 . Parts Damaged . | . . . . Bothacking | -11 -10 -9 -9 ------------ Run | Yrd Mat Mat Min Used RIF Installer . | . . . . Robots Hacked . | . . . . Non-combat . | . . . . Combat . | . . . . Robot Hacks Applied . | . . . . Relay Couplers Released . | . . . . Fabnet Peak Effective % . | . . . . Robots Rewired . | . . . . Allies Hacked . | . . . . Hacks Repelled . | . . . . Allies | -11 -10 -9 -9 -------- Run | Yrd Mat Mat Min Total Allies . | . . . . Largest Group . | . . . . Highest-Rated Group . | . . . . Highest-Rated Ally . | . . . . Total Orders . | . . . . Ally Attacks . | . . . . Total Damage . | . . . . Kills . | . . . . Allies Corrupted . | . . . . Allies Melted . | . . . . Intel | -11 -10 -9 -9 ------- Run | Yrd Mat Mat Min Robot Analysis Total . | . . . . Derelict Logs Recovered . | . . . . Drone Launches . | . . . . Drone Recoveries . | . . . . Exploration | -11 -10 -9 -9 ------------- Run | Yrd Mat Mat Min Turns Passed 1249 | 74 235 810 130 Spaces Moved 441 | 38 106 224 73 Core 18 | 4 . 3 11 Treads 329 | 34 106 189 . Legs . | . . . . Wheels 31 | . . . 31 Hover . | . . . . Flight 63 | . . 32 31 Fastest Speed 40 | 50 160 117 40 Average Speed 149 | 148 160 165 87 Slowest Speed 350 | 160 160 350 200 Overloaded Moves . | . . . . Propulsion Burnouts . | . . . . Robots Hopped . | . . . . Cave-ins Triggered . | . . . . Exploration Rate (%) 18 | 3 20 24 26 Regions Visited 3 Branch Regions 1 Pre-discovered Areas . | . . . . Known Exits Taken . | . . . . Unknown Exits Taken 3 | 1 1 1 . Scrap Searched . | . . . . Spaces Dug . | . . . . Terrain Destroyed 12 | . . . 12 Melee . | . . . . Projectile . | . . . . AOE 12 | . . . 12 Terrain Rammed . | . . . . Walls Destroyed . | . . . . Machines Disabled . | . . . . Actions | -11 -10 -9 -9 --------- Run | Yrd Mat Mat Min Total 895 | 48 132 597 118 Wait 333 | . . 320 13 Move 438 | 37 105 223 73 Hop . | . . . . Pick Up 7 | 2 3 2 . Fast Attach 27 | 7 4 8 8 Attach 8 | . . 2 6 Detach 1 | . . . 1 Swap 1 | . . . 1 Drop 7 | . 1 5 1 Fire 73 | 2 19 37 15 Melee . | . . . . Ram . | . . . . Kick . | . . . . Crush . | . . . . Escape Stasis . | . . . . Rewire . | . . . . Trap . | . . . . Miscellaneous . | . . . . Route ------- -11/Scrapyard -10/Materials -9/Materials -9/Mines History --------- Turn | Location | Event 3 | -11/Scrapyard | Discovered new exit (range 16) 75 | -11/Scrapyard | Entered Materials 260 | -10/Materials | Discovered new exit (range 16) 306 | -10/Materials | Build established: Mutant 310 | -10/Materials | Entered another Materials area 310 | -9/Materials | Evolved 2 slots: Power x1, Utility x1 595 | -9/Materials | Lost 4 parts (2p1n1w) 852 | -9/Materials | Build established: Scavenger-Mutant 1104 | -9/Materials | Discovered new exit (range 8) 1120 | -9/Materials | Entered Mines 1121 | -9/Mines | Assembled infested the area 1145 | -9/Mines | Met a Derelict shopkeep closing up shop 1215 | -9/Mines | Core integrity fell below 50% 1226 | -9/Mines | Core integrity fell below 20% 1250 | -9/Mines | Destroyed by as-14191 with Assembled Blade Last Messages --------------- Acquired Mni. Grenade Launcher. Flight Unit destroyed. Acquired 56 matter. Acquired Lgt. Deuterium Engine. R-06 Scavenger destroyed. as-86765 destroyed. Mni. Grenade Launcher destroyed. Destroyed Mni. Grenade Launcher. as-13547 destroyed. Acquired Imp. Light Armor Plating. Lgt. Deuterium Engine destroyed. Acquired 12 matter. Acquired Mining Laser. Mining Laser destroyed. System corrupted: Component data lost. Acquired Ion Engine. Acquired 16 matter. Flight Unit destroyed. Acquired 45 matter. Imp. Light Armor Plating destroyed. Map ----- +----------------------------------------------------+ | | | | | | | | | | | | | | | | | | | | | | | | | | | | | ???????????????????????????????????????????????? | | ???????????????????????????????????????????????? | | ???????????????????????????????????????????????? | | ????????????????????????????????????###????????? | | ???????????????????????????????????# ##???????? | | ??????????????????????######??????? ##??????? | | ?????????????????????##" "#??????? ##?????? | | ????????????#### ????#!] !!??????? ##????? | | ???????????? ???#|! !???????# ##???? | | ??????????????# ??# ! ??????? #???? | | ???????????????# ###//####??## #???? | | ????????????????#k @ #### #???? | | ?????????????????# aaa #???? | | ?????????????????# a #?????????? | | ????????????????# ### ### ####?????????? | | ????????????????# ????####%! #?# #????????????? | | ?????????????????????????##%= ## #????????????? | | ??????????????????????????#!=* ## #????????????? | | ??????????????????????????##a=### ####?????????? | | ???????????????????????????#[##?# #?????????? | | ???????????????????????????#%#??#### #?????????? | | ???????????????????????????#%#???### #?????????? | | ???????????????????????????#%#??## ! ##????????? | | ?????????????????????????###%#### !*##???????? | | ?????????????????????????# =% # #???????? | | ?????????????????????????# % ##??????? | | ?????????????????????????# == #?#????? | | ?????????????????????????## = !#### ##???? | | ?????????????????????????# !% #??## #???? | | ????????????????????????## #????# #???? | | ???????????????????????## # ##?????# ##???? | | ???????????????????????# ##?????? #????? | | ???????????????????????# ###???? ##???? | | ????????????????# ###### !=! ##???# ##??? | | ????????????????# %|% ##### #??? | | ????????????????##########!= # ??? | +----------------------------------------------------+ Best States ------------- Heat Dissipation 28 Energy Generation 21 Energy Capacity 325 Matter Stores 300 Matter Capacity 300 Sight Range 16 Terrain Scan Range 16 Terrain Scan Density 10 ECM Strength 2 Armor Coverage 375 Evasion (%) 62 Recoil Reduction 2 Item Schematics ----------------- Flight Unit | -9/Materials | Scanalyzed Robot Schematics ------------------ None Fabricated ------------ Nothing Alien Tech Used ----------------- None Achievements -------------- None Challenges ------------ None Game ------ Seed HackingAlphaProjector Manual? 0 Play Time 00:10:48 Cumulative 12.0 hours Start 2024.05.14 @ 20:00:49 End 2024.05.14 @ 20:11:36 Sessions 1 Manual Loads 0 Difficulty Rogue Special Mode None Game No. 36 Rogue 36 Adventurer 0 Explorer 0 Win Type - Total 0 Types 0/0/0/0/0/0/0/0/0 Lore% 17 Gallery% 23 Achievement% 17 Wizard Run 0 Options --------- Layout 1 ASCII 0 Keyboard 0 Movement Mouse Keybinds 0 Fullscreen 1 Font 24/Smallcaps Map View 50x35 Zoom Use 0% Tactical HUD 0 Map Filters NONE Filters NONE Steam 1 RUN: 24544b32-9f60-49ac-b513-6f191d5af04f